[Event "Early-Titled-Tuesday-Blitz-May-07-2024"]
[Site "Chess.com"]
[Date "2024.05.07"]
[Round "11"]
[White "chessdjw"]
[Black "stollenmonster"]
[Result "1-0"]
[WhiteElo "2790"]
[BlackElo "2914"]
[TimeControl "180+1"]
[EndTime "10:14:29 PDT"]
[Termination "chessdjw won by resignation"]

1. e4 {[%clk 0:03:00.9]} 1... c5 {[%clk 0:02:59.8]} 2. Nf3 {[%clk 0:03:00.9]}
2... Nf6 {[%clk 0:02:59.4]} 3. e5 {[%clk 0:03:00.3]} 3... Nd5 {[%clk 0:02:59.5]}
4. Nc3 {[%clk 0:03:00.9]} 4... e6 {[%clk 0:03:00]} 5. Ne4 {[%clk 0:03:00.1]}
5... Nc6 {[%clk 0:03:00.6]} 6. c4 {[%clk 0:02:49.9]} 6... f5 {[%clk 0:03:01]} 7.
Nd6+ {[%clk 0:02:31.3]} 7... Bxd6 {[%clk 0:02:59.6]} 8. exd6 {[%clk 0:02:32.2]}
8... Nf6 {[%clk 0:03:00]} 9. b3 {[%clk 0:02:25.3]} 9... O-O {[%clk 0:02:57.6]}
10. Bb2 {[%clk 0:02:23.1]} 10... e5 {[%clk 0:02:58.2]} 11. d3 {[%clk 0:02:11.9]}
11... b6 {[%clk 0:02:43.3]} 12. g3 {[%clk 0:02:08.1]} 12... Re8 {[%clk
0:02:36.3]} 13. Bg2 {[%clk 0:02:08.1]} 13... e4 {[%clk 0:02:37]} 14. dxe4 {[%clk
0:02:02.1]} 14... Rxe4+ {[%clk 0:02:37.9]} 15. Kf1 {[%clk 0:02:00.5]} 15... Bb7
{[%clk 0:02:38]} 16. Nh4 {[%clk 0:01:54.5]} 16... Nd4 {[%clk 0:01:52.9]} 17.
Bxe4 {[%clk 0:01:52.4]} 17... Nxe4 {[%clk 0:01:46.7]} 18. Bxd4 {[%clk
0:01:46.9]} 18... cxd4 {[%clk 0:01:47.6]} 19. Qxd4 {[%clk 0:01:35.6]} 19... Qg5
{[%clk 0:01:42.5]} 20. f3 {[%clk 0:00:56.7]} 20... f4 {[%clk 0:00:49.2]} 21.
fxe4 {[%clk 0:00:25.9]} 21... fxg3 {[%clk 0:00:48.1]} 22. hxg3 {[%clk
0:00:26.3]} 22... Qxg3 {[%clk 0:00:32.6]} 23. Nf5 {[%clk 0:00:20.6]} 23... Qf3+
{[%clk 0:00:32.3]} 24. Kg1 {[%clk 0:00:20.3]} 24... Qg4+ {[%clk 0:00:28.4]} 25.
Kh2 {[%clk 0:00:19.9]} 25... Qh5+ {[%clk 0:00:23.4]} 26. Kg3 {[%clk 0:00:18.8]}
26... Qg5+ {[%clk 0:00:23.6]} 27. Kf2 {[%clk 0:00:14.9]} 27... Rf8 {[%clk
0:00:07.7]} 28. Rag1 {[%clk 0:00:13.3]} 28... Rxf5+ {[%clk 0:00:02.5]} 29. exf5
{[%clk 0:00:13.8]} 29... Qxf5+ {[%clk 0:00:03]} 30. Ke3 {[%clk 0:00:14.4]} 30...
Qe6+ {[%clk 0:00:03]} 31. Kd2 {[%clk 0:00:14.5]} 31... g6 {[%clk 0:00:03.1]} 32.
Rh2 {[%clk 0:00:09.8]} 32... Qf7 {[%clk 0:00:02.3]} 33. Rf2 {[%clk 0:00:09.9]}
33... Bf3 {[%clk 0:00:02.7]} 34. Rg3 {[%clk 0:00:09.7]} 1-0

[Event "Early-Titled-Tuesday-Blitz-May-07-2024"]
[Site "Chess.com"]
[Date "2024.05.07"]
[Round "11"]
[White "wonderfultime"]
[Black "kleinebeer98"]
[Result "1-0"]
[WhiteElo "3126"]
[BlackElo "2964"]
[TimeControl "180+1"]
[EndTime "10:14:32 PDT"]
[Termination "wonderfultime won by checkmate"]

1. d4 {[%clk 0:03:00.9]} 1... d5 {[%clk 0:03:00.3]} 2. Nf3 {[%clk 0:03:00.7]}
2... Nf6 {[%clk 0:02:59.5]} 3. Bf4 {[%clk 0:03:01.2]} 3... c5 {[%clk 0:02:59.1]}
4. c3 {[%clk 0:03:01.4]} 4... Nc6 {[%clk 0:02:59.5]} 5. e3 {[%clk 0:03:01.6]}
5... e6 {[%clk 0:02:58.4]} 6. Nbd2 {[%clk 0:03:01.4]} 6... Be7 {[%clk
0:02:58.9]} 7. Bd3 {[%clk 0:03:01.4]} 7... Nh5 {[%clk 0:02:57.6]} 8. Be5 {[%clk
0:02:58.5]} 8... Nxe5 {[%clk 0:02:56.3]} 9. Nxe5 {[%clk 0:02:58.6]} 9... Nf6
{[%clk 0:02:56.1]} 10. O-O {[%clk 0:02:59]} 10... O-O {[%clk 0:02:37.4]} 11. f4
{[%clk 0:02:59.2]} 11... g6 {[%clk 0:02:32.5]} 12. Rf3 {[%clk 0:02:59.1]} 12...
Nd7 {[%clk 0:02:19.9]} 13. Rh3 {[%clk 0:02:49.1]} 13... Bf6 {[%clk 0:02:06.4]}
14. Qg4 {[%clk 0:02:01.5]} 14... Bg7 {[%clk 0:01:52]} 15. Qg3 {[%clk 0:02:01.8]}
15... Qb6 {[%clk 0:01:43.3]} 16. Rb1 {[%clk 0:02:00.2]} 16... cxd4 {[%clk
0:01:37.2]} 17. cxd4 {[%clk 0:02:01.1]} 17... Nxe5 {[%clk 0:01:33.6]} 18. fxe5
{[%clk 0:02:01.3]} 18... Bd7 {[%clk 0:01:21.2]} 19. Qh4 {[%clk 0:01:41]} 19...
h6 {[%clk 0:01:18]} 20. Rf3 {[%clk 0:01:17.2]} 20... Rac8 {[%clk 0:01:09.4]} 21.
Qe7 {[%clk 0:01:09.8]} 21... Bb5 {[%clk 0:01:06.5]} 22. Bxb5 {[%clk 0:01:09.9]}
22... Qxb5 {[%clk 0:01:07.4]} 23. Rbf1 {[%clk 0:01:10.1]} 23... Rce8 {[%clk
0:00:58.5]} 24. Qa3 {[%clk 0:01:02.5]} 24... a5 {[%clk 0:00:47.2]} 25. Nb1
{[%clk 0:00:45.9]} 25... b6 {[%clk 0:00:41.5]} 26. Nc3 {[%clk 0:00:44.5]} 26...
Qc6 {[%clk 0:00:39.6]} 27. Qb3 {[%clk 0:00:39.8]} 27... Re7 {[%clk 0:00:15.1]}
28. h3 {[%clk 0:00:39.5]} 28... h5 {[%clk 0:00:12.4]} 29. Nb5 {[%clk 0:00:32.6]}
29... Bh6 {[%clk 0:00:10.5]} 30. Qd3 {[%clk 0:00:31.9]} 30... Kg7 {[%clk
0:00:08.7]} 31. Nd6 {[%clk 0:00:29.9]} 31... Rc7 {[%clk 0:00:09.4]} 32. R1f2
{[%clk 0:00:17.4]} 32... Bg5 {[%clk 0:00:08.3]} 33. Rg3 {[%clk 0:00:16.6]} 33...
Bh4 {[%clk 0:00:03]} 34. Rxf7+ {[%clk 0:00:13.7]} 34... Rfxf7 {[%clk 0:00:03.3]}
35. Qxg6+ {[%clk 0:00:14]} 35... Kf8 {[%clk 0:00:04]} 36. Qg8+ {[%clk
0:00:14.4]} 36... Ke7 {[%clk 0:00:04.7]} 37. Qxf7+ {[%clk 0:00:14.9]} 37... Kd8
{[%clk 0:00:04.1]} 38. Rg8+ {[%clk 0:00:15.8]} 38... Qe8 {[%clk 0:00:03.4]} 39.
Rxe8# {[%clk 0:00:16]} 1-0

[Event "Early-Titled-Tuesday-Blitz-May-07-2024"]
[Site "Chess.com"]
[Date "2024.05.07"]
[Round "11"]
[White "MatthewG-p4p"]
[Black "Aswathchess"]
[Result "1-0"]
[WhiteElo "2862"]
[BlackElo "2652"]
[TimeControl "180+1"]
[EndTime "10:14:32 PDT"]
[Termination "MatthewG-p4p won on time"]

1. e4 {[%clk 0:03:00.9]} 1... c5 {[%clk 0:02:57.1]} 2. c3 {[%clk 0:03:00.8]}
2... e5 {[%clk 0:02:56.3]} 3. Nf3 {[%clk 0:02:58.8]} 3... Nc6 {[%clk 0:02:55.1]}
4. Bc4 {[%clk 0:02:57.6]} 4... Nf6 {[%clk 0:02:54.5]} 5. Ng5 {[%clk 0:02:56.8]}
5... d5 {[%clk 0:02:55]} 6. exd5 {[%clk 0:02:57.7]} 6... Nxd5 {[%clk 0:02:55.6]}
7. Qh5 {[%clk 0:02:57.8]} 7... g6 {[%clk 0:02:55.5]} 8. Qf3 {[%clk 0:02:57.7]}
8... Qxg5 {[%clk 0:02:56.2]} 9. Bxd5 {[%clk 0:02:57.6]} 9... Nd8 {[%clk
0:02:56.9]} 10. O-O {[%clk 0:02:57.2]} 10... Qe7 {[%clk 0:02:57.6]} 11. d4
{[%clk 0:02:57.2]} 11... cxd4 {[%clk 0:02:58.5]} 12. cxd4 {[%clk 0:02:58.1]}
12... exd4 {[%clk 0:02:59.2]} 13. b3 {[%clk 0:02:26.1]} 13... Be6 {[%clk
0:02:58.3]} 14. Re1 {[%clk 0:02:22.8]} 14... Qd7 {[%clk 0:02:29.6]} 15. Nd2
{[%clk 0:02:22]} 15... Be7 {[%clk 0:01:56.4]} 16. Ne4 {[%clk 0:01:48.2]} 16...
O-O {[%clk 0:01:46]} 17. Bc4 {[%clk 0:00:39.4]} 17... Bxc4 {[%clk 0:01:30.1]}
18. bxc4 {[%clk 0:00:40.3]} 18... f5 {[%clk 0:01:06]} 19. Ng3 {[%clk 0:00:38.1]}
19... Nc6 {[%clk 0:01:03.4]} 20. Qd5+ {[%clk 0:00:34]} 20... Qxd5 {[%clk
0:01:02]} 21. cxd5 {[%clk 0:00:34.9]} 21... Bb4 {[%clk 0:01:02.1]} 22. Rd1
{[%clk 0:00:35.4]} 22... Bc3 {[%clk 0:00:58.7]} 23. Rb1 {[%clk 0:00:17.6]} 23...
Nb4 {[%clk 0:00:55.3]} 24. Ne2 {[%clk 0:00:17.7]} 24... Nxd5 {[%clk 0:00:52.6]}
25. Rxb7 {[%clk 0:00:17.9]} 25... Rfe8 {[%clk 0:00:51.2]} 26. Kf1 {[%clk
0:00:17.7]} 26... Nb6 {[%clk 0:00:44.7]} 27. Bh6 {[%clk 0:00:13.7]} 27... Rad8
{[%clk 0:00:38.4]} 28. Rxa7 {[%clk 0:00:11.3]} 28... Nc4 {[%clk 0:00:19.1]} 29.
Rg7+ {[%clk 0:00:11.2]} 29... Kh8 {[%clk 0:00:19]} 30. Rc7 {[%clk 0:00:12.1]}
30... Nb2 {[%clk 0:00:19.3]} 31. Rb1 {[%clk 0:00:08.3]} 31... Nd3 {[%clk
0:00:17.4]} 32. Rbb7 {[%clk 0:00:07.4]} 1-0

[Event "Early-Titled-Tuesday-Blitz-May-07-2024"]
[Site "Chess.com"]
[Date "2024.05.07"]
[Round "11"]
[White "djano"]
[Black "ClauSanLuis"]
[Result "0-1"]
[WhiteElo "2555"]
[BlackElo "2450"]
[TimeControl "180+1"]
[EndTime "10:14:32 PDT"]
[Termination "ClauSanLuis won on time"]

1. Nc3 {[%clk 0:03:00.9]} 1... Nf6 {[%clk 0:02:56.9]} 2. e4 {[%clk 0:02:56.7]}
2... d6 {[%clk 0:02:50.6]} 3. d4 {[%clk 0:02:56.3]} 3... g6 {[%clk 0:02:50.4]}
4. Bf4 {[%clk 0:02:56.2]} 4... Nbd7 {[%clk 0:02:43]} 5. Nf3 {[%clk 0:02:49.7]}
5... Bg7 {[%clk 0:02:43]} 6. Qd2 {[%clk 0:02:47]} 6... O-O {[%clk 0:02:42.1]} 7.
Bh6 {[%clk 0:02:41.4]} 7... e5 {[%clk 0:02:39]} 8. O-O-O {[%clk 0:02:38.6]} 8...
exd4 {[%clk 0:02:38.9]} 9. Nxd4 {[%clk 0:02:39.5]} 9... Nc5 {[%clk 0:02:30.9]}
10. f3 {[%clk 0:02:39.5]} 10... Ne6 {[%clk 0:02:22.1]} 11. Nde2 {[%clk
0:02:35.5]} 11... b5 {[%clk 0:02:09.5]} 12. h4 {[%clk 0:02:31.1]} 12... b4
{[%clk 0:02:09]} 13. Nd5 {[%clk 0:02:31.6]} 13... Nxd5 {[%clk 0:02:05.6]} 14.
exd5 {[%clk 0:02:32.2]} 14... Qf6 {[%clk 0:01:56.9]} 15. Bxg7 {[%clk 0:02:24.8]}
15... Nxg7 {[%clk 0:01:56.4]} 16. Nd4 {[%clk 0:02:13.8]} 16... a5 {[%clk
0:01:53.6]} 17. g4 {[%clk 0:02:12.5]} 17... h5 {[%clk 0:01:52.2]} 18. g5 {[%clk
0:01:53.5]} 18... Qe5 {[%clk 0:01:51.2]} 19. Nc6 {[%clk 0:01:48.5]} 19... Qg3
{[%clk 0:01:46.1]} 20. Bc4 {[%clk 0:01:38.7]} 20... Nf5 {[%clk 0:01:28]} 21. Kb1
{[%clk 0:01:38.8]} 21... Bd7 {[%clk 0:01:20.5]} 22. Rdg1 {[%clk 0:01:35.3]}
22... Qxf3 {[%clk 0:01:19.8]} 23. Rf1 {[%clk 0:01:30.1]} 23... Qe3 {[%clk
0:01:17.2]} 24. Qg2 {[%clk 0:01:20.8]} 24... Bxc6 {[%clk 0:01:15.7]} 25. Rxf5
{[%clk 0:01:16.7]} 25... Bd7 {[%clk 0:01:12]} 26. Rf6 {[%clk 0:01:10.1]} 26...
Rae8 {[%clk 0:01:10.5]} 27. Rd1 {[%clk 0:01:09.6]} 27... Re4 {[%clk 0:01:05.2]}
28. Bd3 {[%clk 0:01:04.7]} 28... Rxh4 {[%clk 0:01:04.5]} 29. Bxg6 {[%clk
0:01:02.6]} 29... fxg6 {[%clk 0:01:01.2]} 30. Rxg6+ {[%clk 0:01:03.5]} 30... Kh7
{[%clk 0:01:01.2]} 31. Rh6+ {[%clk 0:01:00.5]} 31... Kg7 {[%clk 0:01:00.3]} 32.
b3 {[%clk 0:00:53.2]} 32... Bf5 {[%clk 0:00:59.8]} 33. Rf6 {[%clk 0:00:48.7]}
33... Rxf6 {[%clk 0:00:53.4]} 34. gxf6+ {[%clk 0:00:49.6]} 34... Kxf6 {[%clk
0:00:54.2]} 35. Qg8 {[%clk 0:00:45.3]} 35... Qe4 {[%clk 0:00:45.6]} 36. Qf8+
{[%clk 0:00:31]} 36... Kg5 {[%clk 0:00:45.4]} 37. Qd8+ {[%clk 0:00:24.1]} 37...
Kg4 {[%clk 0:00:42.5]} 38. Qxc7 {[%clk 0:00:17.3]} 38... Rh2 {[%clk 0:00:40]}
39. Rc1 {[%clk 0:00:11.8]} 39... h4 {[%clk 0:00:38.5]} 40. Qg7+ {[%clk
0:00:11.5]} 40... Kh3 {[%clk 0:00:37.5]} 41. Qf6 {[%clk 0:00:06.1]} 41... Rxc2
{[%clk 0:00:35.4]} 0-1

[Event "Early-Titled-Tuesday-Blitz-May-07-2024"]
[Site "Chess.com"]
[Date "2024.05.07"]
[Round "11"]
[White "Sofia_Blokhin"]
[Black "MiguelBestard1981"]
[Result "1-0"]
[WhiteElo "2257"]
[BlackElo "2172"]
[TimeControl "180+1"]
[EndTime "10:14:32 PDT"]
[Termination "Sofia_Blokhin won on time"]

1. d4 {[%clk 0:03:00.9]} 1... d5 {[%clk 0:02:58.1]} 2. c4 {[%clk 0:03:00.2]}
2... e5 {[%clk 0:02:51.8]} 3. dxe5 {[%clk 0:02:57.5]} 3... d4 {[%clk 0:02:47]}
4. a3 {[%clk 0:02:56.3]} 4... a5 {[%clk 0:02:44.4]} 5. e3 {[%clk 0:02:54.6]}
5... Nc6 {[%clk 0:02:39.8]} 6. f4 {[%clk 0:02:53.8]} 6... f6 {[%clk 0:02:32.9]}
7. Nf3 {[%clk 0:02:45]} 7... fxe5 {[%clk 0:02:22.7]} 8. fxe5 {[%clk 0:02:38]}
8... Bg4 {[%clk 0:02:01.5]} 9. exd4 {[%clk 0:02:15.6]} 9... Bxf3 {[%clk
0:01:53.7]} 10. Qxf3 {[%clk 0:02:12.5]} 10... Qh4+ {[%clk 0:01:41]} 11. g3
{[%clk 0:02:04.4]} 11... Qxd4 {[%clk 0:01:35.7]} 12. Bh3 {[%clk 0:01:46.3]}
12... Nxe5 {[%clk 0:01:25.6]} 13. Qxb7 {[%clk 0:01:37]} 13... Nd3+ {[%clk
0:01:24.2]} 14. Ke2 {[%clk 0:01:29.9]} 14... Rd8 {[%clk 0:01:14.3]} 15. Qb5+
{[%clk 0:01:21.8]} 15... Kf7 {[%clk 0:01:08.1]} 16. Rf1+ {[%clk 0:01:15.2]}
16... Nf6 {[%clk 0:01:02.5]} 17. Be3 {[%clk 0:00:53.6]} 17... Qxb2+ {[%clk
0:00:50.6]} 18. Qxb2 {[%clk 0:00:51.9]} 18... Nxb2 {[%clk 0:00:51.5]} 19. Nd2
{[%clk 0:00:45.1]} 19... Nd3 {[%clk 0:00:38.1]} 20. Rab1 {[%clk 0:00:43]} 20...
Bc5 {[%clk 0:00:34.1]} 21. Bxc5 {[%clk 0:00:33.1]} 21... Nxc5 {[%clk 0:00:35]}
22. Rb5 {[%clk 0:00:30.6]} 22... Rhe8+ {[%clk 0:00:29]} 23. Kd1 {[%clk
0:00:29.3]} 23... Ne4 {[%clk 0:00:27]} 24. Rb2 {[%clk 0:00:19.4]} 24... Rd3
{[%clk 0:00:19]} 25. Bf5 {[%clk 0:00:16.7]} 25... Rd4 {[%clk 0:00:15.8]} 26.
Bxe4 {[%clk 0:00:15.6]} 26... Rexe4 {[%clk 0:00:16.6]} 27. Rb7 {[%clk
0:00:13.3]} 27... Kg6 {[%clk 0:00:14.6]} 28. Rxc7 {[%clk 0:00:13]} 28... Re3
{[%clk 0:00:11.8]} 29. Kc1 {[%clk 0:00:10.5]} 29... Rxa3 {[%clk 0:00:09.4]} 30.
Kb2 {[%clk 0:00:09.3]} 30... Re3 {[%clk 0:00:06.9]} 31. Nf3 {[%clk 0:00:09.4]}
31... Re2+ {[%clk 0:00:05.4]} 32. Kc3 {[%clk 0:00:09]} 32... Rd6 {[%clk
0:00:01.2]} 33. Nh4+ {[%clk 0:00:08.7]} 1-0

[Event "Early-Titled-Tuesday-Blitz-May-07-2024"]
[Site "Chess.com"]
[Date "2024.05.07"]
[Round "11"]
[White "Chessbard1972"]
[Black "Caterpiller35"]
[Result "1/2-1/2"]
[WhiteElo "2336"]
[BlackElo "2468"]
[TimeControl "180+1"]
[EndTime "10:14:34 PDT"]
[Termination "Game drawn by repetition"]

1. d4 {[%clk 0:03:00.9]} 1... Nf6 {[%clk 0:02:59.9]} 2. c4 {[%clk 0:03:00.3]}
2... g6 {[%clk 0:03:00]} 3. Nf3 {[%clk 0:03:00]} 3... Bg7 {[%clk 0:03:00.3]} 4.
g3 {[%clk 0:03:00.9]} 4... d6 {[%clk 0:03:00.7]} 5. Bg2 {[%clk 0:03:01.8]} 5...
O-O {[%clk 0:03:01.1]} 6. Nc3 {[%clk 0:03:02.1]} 6... Nc6 {[%clk 0:03:01.2]} 7.
O-O {[%clk 0:03:02]} 7... e5 {[%clk 0:03:01]} 8. dxe5 {[%clk 0:03:01.8]} 8...
dxe5 {[%clk 0:02:55.1]} 9. Qxd8 {[%clk 0:03:01.2]} 9... Rxd8 {[%clk 0:02:56]}
10. Bg5 {[%clk 0:03:01.5]} 10... h6 {[%clk 0:02:56.6]} 11. Bxf6 {[%clk
0:03:00.4]} 11... Bxf6 {[%clk 0:02:57.5]} 12. Nd5 {[%clk 0:03:00.8]} 12... Kg7
{[%clk 0:02:58.1]} 13. Nxc7 {[%clk 0:03:00.1]} 13... Rb8 {[%clk 0:02:58.7]} 14.
Nd5 {[%clk 0:03:00.1]} 14... Be6 {[%clk 0:02:55.2]} 15. Nxf6 {[%clk 0:02:59.3]}
15... Kxf6 {[%clk 0:02:56.1]} 16. b3 {[%clk 0:02:58.5]} 16... Rd7 {[%clk
0:02:40.4]} 17. Rad1 {[%clk 0:02:57]} 17... Rbd8 {[%clk 0:02:40.6]} 18. Rxd7
{[%clk 0:02:56.9]} 18... Rxd7 {[%clk 0:02:41.5]} 19. Rc1 {[%clk 0:02:52.6]}
19... a5 {[%clk 0:02:34.3]} 20. h3 {[%clk 0:02:43.4]} 20... Nb4 {[%clk
0:02:31.4]} 21. a3 {[%clk 0:02:37.5]} 21... Na6 {[%clk 0:02:22.5]} 22. Ne1
{[%clk 0:02:26]} 22... Nc5 {[%clk 0:02:15.4]} 23. b4 {[%clk 0:02:20.2]} 23...
Nb3 {[%clk 0:02:09.7]} 24. Rc3 {[%clk 0:02:08.3]} 24... Rd1 {[%clk 0:02:04]} 25.
Rxb3 {[%clk 0:02:04.9]} 25... Rxe1+ {[%clk 0:02:03.5]} 26. Kh2 {[%clk
0:02:04.1]} 26... axb4 {[%clk 0:00:58.5]} 27. Rxb4 {[%clk 0:02:00.5]} 27... Rxe2
{[%clk 0:00:59]} 28. Kg1 {[%clk 0:01:55.7]} 28... Re1+ {[%clk 0:00:56.7]} 29.
Kh2 {[%clk 0:01:54]} 29... Re2 {[%clk 0:00:56.7]} 30. Bxb7 {[%clk 0:01:52.2]}
30... Rxf2+ {[%clk 0:00:56.6]} 31. Kg1 {[%clk 0:01:52.6]} 31... Rc2 {[%clk
0:00:46.4]} 32. Bd5 {[%clk 0:01:47.3]} 32... Bxd5 {[%clk 0:00:40.6]} 33. cxd5
{[%clk 0:01:47]} 33... Rc5 {[%clk 0:00:36.9]} 34. Rb6+ {[%clk 0:01:44.6]} 34...
Ke7 {[%clk 0:00:36.4]} 35. d6+ {[%clk 0:01:43.5]} 35... Kd7 {[%clk 0:00:35.3]}
36. Ra6 {[%clk 0:01:43.4]} 36... Rc2 {[%clk 0:00:31]} 37. a4 {[%clk 0:01:42]}
37... f5 {[%clk 0:00:29.7]} 38. a5 {[%clk 0:01:41.8]} 38... Ra2 {[%clk 0:00:29]}
39. Ra7+ {[%clk 0:01:29.7]} 39... Kxd6 {[%clk 0:00:29.1]} 40. Ra6+ {[%clk
0:01:30.1]} 40... Kd5 {[%clk 0:00:25.5]} 41. Rxg6 {[%clk 0:01:30]} 41... Rxa5
{[%clk 0:00:25.4]} 42. Rxh6 {[%clk 0:01:30.1]} 42... Ke4 {[%clk 0:00:24.8]} 43.
Rf6 {[%clk 0:01:25.9]} 43... Ra1+ {[%clk 0:00:23]} 44. Kf2 {[%clk 0:01:25.4]}
44... Ra2+ {[%clk 0:00:23.9]} 45. Kg1 {[%clk 0:01:21.3]} 45... Kf3 {[%clk
0:00:22.6]} 46. Rxf5+ {[%clk 0:01:21.1]} 46... Kxg3 {[%clk 0:00:22.9]} 47. Kf1
{[%clk 0:01:18.8]} 47... Kxh3 {[%clk 0:00:19.7]} 48. Rxe5 {[%clk 0:01:18.6]}
48... Kg3 {[%clk 0:00:19.4]} 49. Ke1 {[%clk 0:01:18.2]} 49... Kf4 {[%clk
0:00:19.2]} 50. Rb5 {[%clk 0:01:18.1]} 50... Ke3 {[%clk 0:00:18.9]} 51. Kd1
{[%clk 0:01:18.3]} 51... Rd2+ {[%clk 0:00:17.5]} 52. Kc1 {[%clk 0:01:18.2]}
52... Rh2 {[%clk 0:00:17.7]} 53. Kb1 {[%clk 0:01:18.1]} 53... Kd3 {[%clk
0:00:17.4]} 54. Rb3+ {[%clk 0:01:17.1]} 54... Kc4 {[%clk 0:00:17.5]} 55. Rg3
{[%clk 0:01:14.8]} 55... Kb4 {[%clk 0:00:18]} 56. Kc1 {[%clk 0:01:14.3]} 56...
Kc4 {[%clk 0:00:18.3]} 57. Kd1 {[%clk 0:01:14.5]} 57... Kd4 {[%clk 0:00:18.9]}
58. Ke1 {[%clk 0:01:15]} 58... Ra2 {[%clk 0:00:18.8]} 59. Kf1 {[%clk 0:01:14.6]}
59... Ke4 {[%clk 0:00:19.2]} 60. Kg1 {[%clk 0:01:14.3]} 60... Kf4 {[%clk
0:00:19.4]} 61. Rb3 {[%clk 0:01:14.6]} 61... Rc2 {[%clk 0:00:19.3]} 62. Kf1
{[%clk 0:01:13.3]} 62... Ra2 {[%clk 0:00:18.7]} 63. Ke1 {[%clk 0:01:13.7]} 63...
Rh2 {[%clk 0:00:18.7]} 64. Kd1 {[%clk 0:01:14.6]} 64... Ke4 {[%clk 0:00:18.4]}
65. Kc1 {[%clk 0:01:14.8]} 65... Kd4 {[%clk 0:00:19]} 66. Rg3 {[%clk 0:01:14.4]}
66... Kc4 {[%clk 0:00:19.2]} 67. Kb1 {[%clk 0:01:13.7]} 67... Rf2 {[%clk
0:00:19.4]} 68. Rh3 {[%clk 0:01:13.2]} 68... Rg2 {[%clk 0:00:19.4]} 69. Rf3
{[%clk 0:01:12.4]} 69... Rh2 {[%clk 0:00:19.4]} 70. Rg3 {[%clk 0:01:12.4]}
1/2-1/2

[Event "Early-Titled-Tuesday-Blitz-May-07-2024"]
[Site "Chess.com"]
[Date "2024.05.07"]
[Round "11"]
[White "Airquake"]
[Black "ansko1999"]
[Result "0-1"]
[WhiteElo "2796"]
[BlackElo "2660"]
[TimeControl "180+1"]
[EndTime "10:14:35 PDT"]
[Termination "ansko1999 won on time"]

1. e4 {[%clk 0:03:00.9]} 1... c5 {[%clk 0:03:00.1]} 2. Nf3 {[%clk 0:02:59.3]}
2... Nf6 {[%clk 0:03:00.3]} 3. e5 {[%clk 0:02:59.2]} 3... Nd5 {[%clk 0:03:00.6]}
4. d4 {[%clk 0:02:59.8]} 4... cxd4 {[%clk 0:02:58.1]} 5. Qxd4 {[%clk 0:02:59.4]}
5... e6 {[%clk 0:02:57.9]} 6. Bc4 {[%clk 0:02:57]} 6... Nc6 {[%clk 0:02:57]} 7.
Qe4 {[%clk 0:02:56.1]} 7... Nb6 {[%clk 0:02:52.7]} 8. Bd3 {[%clk 0:02:52]} 8...
d6 {[%clk 0:02:46]} 9. Nc3 {[%clk 0:02:45.6]} 9... dxe5 {[%clk 0:02:25.4]} 10.
Nxe5 {[%clk 0:02:44.8]} 10... Nxe5 {[%clk 0:02:25.8]} 11. Qxe5 {[%clk
0:02:44.7]} 11... Bd7 {[%clk 0:02:22.9]} 12. Nb5 {[%clk 0:02:41.8]} 12... Nd5
{[%clk 0:01:55.1]} 13. c4 {[%clk 0:02:29.3]} 13... Bxb5 {[%clk 0:01:54]} 14.
cxb5 {[%clk 0:02:23.4]} 14... Bb4+ {[%clk 0:01:54.6]} 15. Kf1 {[%clk 0:02:17.8]}
15... O-O {[%clk 0:01:49.7]} 16. g3 {[%clk 0:02:17.6]} 16... Be7 {[%clk
0:01:43.2]} 17. Kg2 {[%clk 0:02:13.9]} 17... Nf4+ {[%clk 0:01:39.2]} 18. Bxf4
{[%clk 0:02:08.7]} 18... Qxd3 {[%clk 0:01:40.1]} 19. Rhd1 {[%clk 0:02:04.1]}
19... Qg6 {[%clk 0:01:31.7]} 20. Rd7 {[%clk 0:01:45.3]} 20... Bf6 {[%clk
0:01:30.4]} 21. Qe2 {[%clk 0:01:45.8]} 21... b6 {[%clk 0:01:25.3]} 22. Rc1
{[%clk 0:01:43.9]} 22... Rfd8 {[%clk 0:01:12.4]} 23. Rcc7 {[%clk 0:01:39.2]}
23... Rxd7 {[%clk 0:01:10.1]} 24. Rxd7 {[%clk 0:01:38.8]} 24... Qf5 {[%clk
0:01:10.1]} 25. Qc4 {[%clk 0:01:01.2]} 25... g5 {[%clk 0:00:53.1]} 26. Be3
{[%clk 0:00:49.6]} 26... Bxb2 {[%clk 0:00:40.9]} 27. Qc6 {[%clk 0:00:49.4]}
27... Rf8 {[%clk 0:00:23.8]} 28. Rxa7 {[%clk 0:00:49.1]} 28... e5 {[%clk
0:00:18]} 29. Qf3 {[%clk 0:00:16.6]} 29... Qg6 {[%clk 0:00:13.3]} 30. Qd5 {[%clk
0:00:10.8]} 30... Rc8 {[%clk 0:00:05.1]} 31. Rb7 {[%clk 0:00:09.5]} 31... Bd4
{[%clk 0:00:02.9]} 32. Bxd4 {[%clk 0:00:09.2]} 32... exd4 {[%clk 0:00:03.8]} 33.
Qxd4 {[%clk 0:00:09.6]} 33... Qf5 {[%clk 0:00:03.8]} 34. Rxb6 {[%clk 0:00:08.1]}
34... g4 {[%clk 0:00:03.9]} 35. a4 {[%clk 0:00:06.8]} 35... Qf3+ {[%clk
0:00:03.9]} 0-1